[Event "*** SCC Grand Prix: Titled Tuesday Blitz"]
[Site "Chess.com"]
[Date "2020.08.11"]
[Round "8"]
[White "canary2016"]
[Black "MFguimaraes"]
[Result "0-1"]
[WhiteElo "1876"]
[BlackElo "2410"]
[TimeControl "180+1"]
[EndTime "11:34:28 PDT"]
[Termination "MFguimaraes won by checkmate"]

1. d4 {[%clk 0:03:00.9]} 1... f5 {[%clk 0:02:58]} 2. g3 {[%clk 0:03:00.2]} 2...
Nf6 {[%clk 0:02:58]} 3. Bg2 {[%clk 0:03:00.2]} 3... d5 {[%clk 0:02:58.9]} 4. b3
{[%clk 0:02:57.4]} 4... e6 {[%clk 0:02:59.2]} 5. c4 {[%clk 0:02:56.7]} 5... Be7
{[%clk 0:02:59.3]} 6. Bb2 {[%clk 0:02:56.8]} 6... O-O {[%clk 0:02:59.2]} 7. Nf3
{[%clk 0:02:53.6]} 7... a5 {[%clk 0:02:58.4]} 8. O-O {[%clk 0:02:53.6]} 8... a4
{[%clk 0:02:58]} 9. bxa4 {[%clk 0:02:43.2]} 9... dxc4 {[%clk 0:02:47.1]} 10. Qc2
{[%clk 0:02:39.4]} 10... Bd7 {[%clk 0:02:44.1]} 11. Qxc4 {[%clk 0:02:37.9]}
11... Rxa4 {[%clk 0:02:42.7]} 12. Qc2 {[%clk 0:02:35.8]} 12... Nc6 {[%clk
0:02:35.6]} 13. e3 {[%clk 0:02:34.1]} 13... Nb4 {[%clk 0:02:35.2]} 14. Qb3
{[%clk 0:02:32.2]} 14... Qa8 {[%clk 0:02:19.4]} 15. Nc3 {[%clk 0:02:25.3]} 15...
Ra6 {[%clk 0:02:16.3]} 16. a3 {[%clk 0:02:23.4]} 16... Nbd5 {[%clk 0:02:14.7]}
17. Nxd5 {[%clk 0:02:22]} 17... Nxd5 {[%clk 0:02:14]} 18. Ne5 {[%clk 0:02:22]}
18... Ba4 {[%clk 0:02:13.7]} 19. Qc4 {[%clk 0:02:16]} 19... c6 {[%clk
0:02:11.4]} 20. Rac1 {[%clk 0:02:03]} 20... Bb5 {[%clk 0:02:10.7]} 21. Qb3
{[%clk 0:01:58.1]} 21... Bxf1 {[%clk 0:02:08]} 22. Rxf1 {[%clk 0:01:57.6]} 22...
Bxa3 {[%clk 0:02:08.5]} 23. Bxa3 {[%clk 0:01:46.8]} 23... Rxa3 {[%clk
0:02:09.4]} 24. Qb2 {[%clk 0:01:41.6]} 24... Ra2 {[%clk 0:02:05.2]} 25. Qb3
{[%clk 0:01:40.5]} 25... Ra3 {[%clk 0:02:00.2]} 26. Qb2 {[%clk 0:01:40]} 26...
b5 {[%clk 0:01:53.9]} 27. Rc1 {[%clk 0:01:38.3]} 27... Rc8 {[%clk 0:01:40.7]}
28. Nxc6 {[%clk 0:01:28.2]} 28... Kh8 {[%clk 0:01:12.6]} 29. Bxd5 {[%clk
0:00:55.9]} 29... exd5 {[%clk 0:01:08.8]} 30. Rc5 {[%clk 0:00:35.7]} 30... Ra1+
{[%clk 0:00:56.6]} 31. Kg2 {[%clk 0:00:35]} 31... Qa2 {[%clk 0:00:55.4]} 32. Qb4
{[%clk 0:00:20.1]} 32... Qb1 {[%clk 0:00:48.8]} 33. Qxb1 {[%clk 0:00:19]} 33...
Rxb1 {[%clk 0:00:49.7]} 34. Rxd5 {[%clk 0:00:15.1]} 34... h6 {[%clk 0:00:49.8]}
35. Ne7 {[%clk 0:00:13.4]} 35... Rb8 {[%clk 0:00:45.6]} 36. Nxf5 {[%clk
0:00:13.3]} 36... b4 {[%clk 0:00:46]} 37. Rd7 {[%clk 0:00:12.9]} 37... b3 {[%clk
0:00:40.6]} 38. Nxg7 {[%clk 0:00:12]} 38... b2 {[%clk 0:00:40.5]} 39. Ne6 {[%clk
0:00:11.1]} 39... Rg1+ {[%clk 0:00:39.8]} 40. Kxg1 {[%clk 0:00:11.3]} 40...
b1=Q+ {[%clk 0:00:39.8]} 41. Kg2 {[%clk 0:00:11.5]} 41... Qe4+ {[%clk
0:00:39.5]} 42. Kh3 {[%clk 0:00:09.7]} 42... Qxe6+ {[%clk 0:00:39.4]} 43. g4
{[%clk 0:00:10]} 43... Qxd7 {[%clk 0:00:40.3]} 44. f3 {[%clk 0:00:08.8]} 44...
Rg8 {[%clk 0:00:41.2]} 45. Kg3 {[%clk 0:00:08.4]} 45... Qd6+ {[%clk 0:00:41.2]}
46. f4 {[%clk 0:00:08.4]} 46... Qd5 {[%clk 0:00:41.4]} 47. h3 {[%clk 0:00:07.7]}
47... Qe4 {[%clk 0:00:41.8]} 48. Kf2 {[%clk 0:00:07.5]} 48... Re8 {[%clk
0:00:42.5]} 49. g5 {[%clk 0:00:06.2]} 49... Qxe3+ {[%clk 0:00:43.4]} 50. Kg2
{[%clk 0:00:05.6]} 50... Rc8 {[%clk 0:00:40.5]} 51. gxh6 {[%clk 0:00:05.1]}
51... Rc2+ {[%clk 0:00:41.4]} 52. Kh1 {[%clk 0:00:03.1]} 52... Qc1# {[%clk
0:00:42.3]} 0-1

[Event "*** SCC Grand Prix: Titled Tuesday Blitz"]
[Site "Chess.com"]
[Date "2020.08.11"]
[Round "8"]
[White "MrChampion_Coach"]
[Black "Donskov_AN"]
[Result "0-1"]
[WhiteElo "2445"]
[BlackElo "2573"]
[TimeControl "180+1"]
[EndTime "11:34:29 PDT"]
[Termination "Donskov_AN won on time"]

1. e4 {[%clk 0:00:49.9]} 1... c5 {[%clk 0:02:43.6]} 2. Nf3 {[%clk 0:00:49.4]}
2... Nc6 {[%clk 0:02:43.2]} 3. Bb5 {[%clk 0:00:48.8]} 3... g6 {[%clk 0:02:43]}
4. Bxc6 {[%clk 0:00:49.1]} 4... dxc6 {[%clk 0:02:43.9]} 5. d3 {[%clk 0:00:48.5]}
5... Bg7 {[%clk 0:02:44.5]} 6. h3 {[%clk 0:00:49]} 6... Nf6 {[%clk 0:02:43.9]}
7. Nc3 {[%clk 0:00:46.6]} 7... Nd7 {[%clk 0:02:43.5]} 8. Bf4 {[%clk 0:00:45.5]}
8... Nf8 {[%clk 0:02:43.4]} 9. Qd2 {[%clk 0:00:44.8]} 9... Ne6 {[%clk
0:02:43.5]} 10. Bh6 {[%clk 0:00:45.2]} 10... b5 {[%clk 0:02:40.3]} 11. Bxg7
{[%clk 0:00:43.2]} 11... Nxg7 {[%clk 0:02:41.2]} 12. a4 {[%clk 0:00:42.7]} 12...
Ne6 {[%clk 0:02:35]} 13. axb5 {[%clk 0:00:41.6]} 13... cxb5 {[%clk 0:02:35.9]}
14. Nxb5 {[%clk 0:00:41.5]} 14... Rb8 {[%clk 0:02:33.9]} 15. Nxa7 {[%clk
0:00:40.9]} 15... Bd7 {[%clk 0:02:26.4]} 16. Ne5 {[%clk 0:00:40.1]} 16... O-O
{[%clk 0:02:24.4]} 17. Nac6 {[%clk 0:00:38.8]} 17... Bxc6 {[%clk 0:02:21.1]} 18.
Nxc6 {[%clk 0:00:39.7]} 18... Qd6 {[%clk 0:02:21.6]} 19. Nxb8 {[%clk 0:00:38.8]}
19... Rxb8 {[%clk 0:02:22.5]} 20. b3 {[%clk 0:00:36.2]} 20... g5 {[%clk
0:02:12.3]} 21. h4 {[%clk 0:00:29.8]} 21... h6 {[%clk 0:02:09.5]} 22. hxg5
{[%clk 0:00:29.3]} 22... hxg5 {[%clk 0:02:10.4]} 23. Qc3 {[%clk 0:00:27.8]}
23... f6 {[%clk 0:02:09.2]} 24. Ra7 {[%clk 0:00:24.4]} 24... Nd4 {[%clk
0:01:59.7]} 25. Kf1 {[%clk 0:00:21.2]} 25... g4 {[%clk 0:01:54.2]} 26. Rh4
{[%clk 0:00:19.8]} 26... Qf4 {[%clk 0:01:30.5]} 27. Qc4+ {[%clk 0:00:18.3]}
27... Kf8 {[%clk 0:01:23.3]} 28. Ra1 {[%clk 0:00:11.8]} 28... Kg7 {[%clk
0:01:13.2]} 29. Qxc5 {[%clk 0:00:07.9]} 29... Qd6 {[%clk 0:00:39.9]} 30. Qxd6
{[%clk 0:00:06.7]} 30... exd6 {[%clk 0:00:40.8]} 31. Ra7+ {[%clk 0:00:07]} 31...
Kg6 {[%clk 0:00:40.9]} 32. Rc7 {[%clk 0:00:07.9]} 32... f5 {[%clk 0:00:39.6]}
33. Rhh7 {[%clk 0:00:07.4]} 33... Ne6 {[%clk 0:00:37.4]} 34. Rce7 {[%clk
0:00:06.9]} 34... Nd4 {[%clk 0:00:33.9]} 35. Rhg7+ {[%clk 0:00:06.2]} 35... Kf6
{[%clk 0:00:34.2]} 36. Rgf7+ {[%clk 0:00:05.5]} 36... Kg6 {[%clk 0:00:34.4]} 37.
exf5+ {[%clk 0:00:05.2]} 37... Nxf5 {[%clk 0:00:33]} 38. Rd7 {[%clk 0:00:04.8]}
38... Nd4 {[%clk 0:00:31.1]} 39. Rxd6+ {[%clk 0:00:04.4]} 39... Kxf7 {[%clk
0:00:31.6]} 40. Rxd4 {[%clk 0:00:05.1]} 40... Ke6 {[%clk 0:00:32.5]} 41. Rf4
{[%clk 0:00:06]} 41... g3 {[%clk 0:00:32]} 42. Re4+ {[%clk 0:00:06.9]} 42... Kf5
{[%clk 0:00:31.8]} 43. fxg3 {[%clk 0:00:07.1]} 43... Ra8 {[%clk 0:00:32.6]} 44.
Rf4+ {[%clk 0:00:07.5]} 44... Kg5 {[%clk 0:00:32.7]} 45. Ke2 {[%clk 0:00:08.4]}
45... Ra1 {[%clk 0:00:33.5]} 0-1

[Event "*** SCC Grand Prix: Titled Tuesday Blitz"]
[Site "Chess.com"]
[Date "2020.08.11"]
[Round "8"]
[White "dpopadic"]
[Black "vesalhamedinia"]
[Result "0-1"]
[WhiteElo "2413"]
[BlackElo "2293"]
[TimeControl "180+1"]
[EndTime "11:34:33 PDT"]
[Termination "vesalhamedinia won on time"]

1. e4 {[%clk 0:03:00.9]} 1... c5 {[%clk 0:02:59.1]} 2. Nc3 {[%clk 0:03:00]} 2...
Nc6 {[%clk 0:02:58.6]} 3. f4 {[%clk 0:02:59.4]} 3... e6 {[%clk 0:02:58.1]} 4.
Nf3 {[%clk 0:02:59.3]} 4... Nf6 {[%clk 0:02:58]} 5. Bb5 {[%clk 0:02:58.9]} 5...
Be7 {[%clk 0:02:56.5]} 6. Bxc6 {[%clk 0:02:57.9]} 6... bxc6 {[%clk 0:02:51.6]}
7. d3 {[%clk 0:02:57.8]} 7... d5 {[%clk 0:02:50.9]} 8. e5 {[%clk 0:02:56.7]}
8... Nd7 {[%clk 0:02:49.6]} 9. O-O {[%clk 0:02:56.4]} 9... O-O {[%clk
0:02:48.9]} 10. Kh1 {[%clk 0:02:56.3]} 10... f6 {[%clk 0:02:48.3]} 11. exf6
{[%clk 0:02:51.2]} 11... Bxf6 {[%clk 0:02:47.8]} 12. Qe2 {[%clk 0:02:50.4]}
12... Qe8 {[%clk 0:02:45.6]} 13. Bd2 {[%clk 0:02:49.9]} 13... a5 {[%clk
0:02:43.1]} 14. Na4 {[%clk 0:02:40.9]} 14... c4 {[%clk 0:02:16.5]} 15. Rfe1
{[%clk 0:02:20.4]} 15... cxd3 {[%clk 0:02:14.7]} 16. Qxd3 {[%clk 0:02:10.2]}
16... Qe7 {[%clk 0:01:25.7]} 17. Nd4 {[%clk 0:01:54.9]} 17... Bxd4 {[%clk
0:01:22.1]} 18. Qxd4 {[%clk 0:01:53.7]} 18... Ba6 {[%clk 0:01:07.5]} 19. Qe3
{[%clk 0:01:36]} 19... Rf6 {[%clk 0:00:53.6]} 20. Bc3 {[%clk 0:01:23.7]} 20...
Rh6 {[%clk 0:00:52.7]} 21. Bd4 {[%clk 0:01:20.6]} 21... Qh4 {[%clk 0:00:32]} 22.
h3 {[%clk 0:01:11.8]} 22... Rf8 {[%clk 0:00:31.1]} 23. Be5 {[%clk 0:00:35.1]}
23... Nxe5 {[%clk 0:00:23.6]} 24. fxe5 {[%clk 0:00:34.6]} 24... Qxa4 {[%clk
0:00:22.5]} 25. b3 {[%clk 0:00:28.9]} 25... Qb4 {[%clk 0:00:20.4]} 26. Rad1
{[%clk 0:00:18.6]} 26... c5 {[%clk 0:00:19.4]} 27. Rg1 {[%clk 0:00:14.9]} 27...
c4 {[%clk 0:00:18]} 28. Qa7 {[%clk 0:00:12.8]} 28... Qb5 {[%clk 0:00:16.4]} 29.
Rd4 {[%clk 0:00:11]} 29... cxb3 {[%clk 0:00:15.7]} 30. axb3 {[%clk 0:00:10.3]}
30... Bc8 {[%clk 0:00:15.5]} 31. Rg4 {[%clk 0:00:08.2]} 31... Qd7 {[%clk
0:00:15.9]} 32. Qxa5 {[%clk 0:00:07.3]} 32... Rh5 {[%clk 0:00:16.1]} 33. Qe1
{[%clk 0:00:05]} 33... Rhf5 {[%clk 0:00:14.6]} 34. Qg3 {[%clk 0:00:04.3]} 34...
Bb7 {[%clk 0:00:14.4]} 35. Kh2 {[%clk 0:00:04]} 35... g6 {[%clk 0:00:11.7]} 36.
Qe3 {[%clk 0:00:01.4]} 36... Kg7 {[%clk 0:00:11.4]} 37. Qc5 {[%clk 0:00:01.6]}
37... Rc8 {[%clk 0:00:10.2]} 38. Qd4 {[%clk 0:00:01.2]} 38... Qc6 {[%clk
0:00:08.9]} 0-1

[Event "*** SCC Grand Prix: Titled Tuesday Blitz"]
[Site "Chess.com"]
[Date "2020.08.11"]
[Round "8"]
[White "TimKett"]
[Black "Zarikovs1999"]
[Result "0-1"]
[WhiteElo "2195"]
[BlackElo "2365"]
[TimeControl "180+1"]
[EndTime "11:34:33 PDT"]
[Termination "Zarikovs1999 won on time"]

1. e4 {[%clk 0:03:00.9]} 1... c5 {[%clk 0:02:55.6]} 2. Nf3 {[%clk 0:03:00.6]}
2... d6 {[%clk 0:02:56.1]} 3. d4 {[%clk 0:03:01]} 3... cxd4 {[%clk 0:02:57]} 4.
Nxd4 {[%clk 0:03:01.2]} 4... Nf6 {[%clk 0:02:56.4]} 5. Nc3 {[%clk 0:03:01.8]}
5... a6 {[%clk 0:02:56]} 6. Bg5 {[%clk 0:03:01.3]} 6... Nbd7 {[%clk 0:02:55]} 7.
f4 {[%clk 0:03:01.3]} 7... e6 {[%clk 0:02:55.3]} 8. Qf3 {[%clk 0:03:00.7]} 8...
Qc7 {[%clk 0:02:55.4]} 9. O-O-O {[%clk 0:03:00.4]} 9... b5 {[%clk 0:02:56]} 10.
Bd3 {[%clk 0:02:53.3]} 10... Bb7 {[%clk 0:02:55.6]} 11. Rhe1 {[%clk 0:02:46.5]}
11... h6 {[%clk 0:02:53.8]} 12. Bxf6 {[%clk 0:02:42.8]} 12... gxf6 {[%clk
0:02:50.2]} 13. f5 {[%clk 0:02:32.6]} 13... e5 {[%clk 0:02:37.8]} 14. Nb3 {[%clk
0:02:27.8]} 14... Nb6 {[%clk 0:02:37.4]} 15. Na5 {[%clk 0:02:12.3]} 15... b4
{[%clk 0:02:32]} 16. Ne2 {[%clk 0:01:53.8]} 16... Be7 {[%clk 0:02:23.4]} 17.
Nxb7 {[%clk 0:01:50.9]} 17... Qxb7 {[%clk 0:02:23.6]} 18. Ng3 {[%clk 0:01:48.7]}
18... a5 {[%clk 0:02:18.2]} 19. Nh5 {[%clk 0:01:48.3]} 19... Qc6 {[%clk
0:02:15.9]} 20. Ng7+ {[%clk 0:01:47]} 20... Kf8 {[%clk 0:02:10]} 21. Nh5 {[%clk
0:01:46.2]} 21... Qc5 {[%clk 0:01:47.5]} 22. g4 {[%clk 0:01:38]} 22... a4 {[%clk
0:01:44.5]} 23. Kb1 {[%clk 0:01:20.7]} 23... a3 {[%clk 0:01:42.4]} 24. Qe3
{[%clk 0:01:15.3]} 24... Qc6 {[%clk 0:01:36.9]} 25. b3 {[%clk 0:00:58.9]} 25...
Qc3 {[%clk 0:01:36]} 26. Qc1 {[%clk 0:00:59.4]} 26... Nd7 {[%clk 0:01:18.5]} 27.
Re3 {[%clk 0:00:58]} 27... Qc6 {[%clk 0:01:13.5]} 28. Bc4 {[%clk 0:00:55.4]}
28... Rc8 {[%clk 0:01:13]} 29. Qd2 {[%clk 0:00:50.1]} 29... Qb6 {[%clk
0:01:09.8]} 30. Qd5 {[%clk 0:00:47.2]} 30... Rh7 {[%clk 0:01:06.1]} 31. Rh3
{[%clk 0:00:38.9]} 31... Qc7 {[%clk 0:01:03]} 32. Ng3 {[%clk 0:00:36.8]} 32...
Nb6 {[%clk 0:00:59]} 33. Qb5 {[%clk 0:00:31.8]} 33... Nxc4 {[%clk 0:00:57.1]}
34. bxc4 {[%clk 0:00:31.7]} 34... Qxc4 {[%clk 0:00:58]} 35. Qxc4 {[%clk
0:00:30.8]} 35... Rxc4 {[%clk 0:00:58.9]} 36. Ne2 {[%clk 0:00:26.7]} 36... Rxe4
{[%clk 0:00:57.6]} 37. Rd2 {[%clk 0:00:17.4]} 37... Rxg4 {[%clk 0:00:56.3]} 38.
Rhd3 {[%clk 0:00:16.2]} 38... Rg5 {[%clk 0:00:53.5]} 39. Ng3 {[%clk 0:00:15]}
39... h5 {[%clk 0:00:52.4]} 40. Rd5 {[%clk 0:00:09.4]} 40... h4 {[%clk
0:00:51.1]} 41. Ne4 {[%clk 0:00:09.5]} 41... Rxf5 {[%clk 0:00:51.6]} 42. Nxd6
{[%clk 0:00:09.7]} 42... Bxd6 {[%clk 0:00:52.5]} 43. Rxd6 {[%clk 0:00:09.7]}
43... Kg7 {[%clk 0:00:50.6]} 44. Rb6 {[%clk 0:00:03.7]} 44... Rf4 {[%clk
0:00:50]} 45. Rd1 {[%clk 0:00:02.3]} 45... Rh5 {[%clk 0:00:48.8]} 46. c3 {[%clk
0:00:01.8]} 46... bxc3 {[%clk 0:00:45.7]} 47. Kc2 {[%clk 0:00:02.4]} 47... Rf2+
{[%clk 0:00:44.5]} 48. Kxc3 {[%clk 0:00:02.5]} 48... Rxa2 {[%clk 0:00:41.4]} 49.
Rg1+ {[%clk 0:00:02.4]} 49... Rg5 {[%clk 0:00:41.8]} 50. Rf1 {[%clk 0:00:01.8]}
50... f5 {[%clk 0:00:39.2]} 51. Kb3 {[%clk 0:00:02]} 51... Rb2+ {[%clk
0:00:39.2]} 52. Kxa3 {[%clk 0:00:02.5]} 52... Rxb6 {[%clk 0:00:40.1]} 0-1

[Event "*** SCC Grand Prix: Titled Tuesday Blitz"]
[Site "Chess.com"]
[Date "2020.08.11"]
[Round "8"]
[White "mortngabriel"]
[Black "frederiksvane"]
[Result "1-0"]
[WhiteElo "2467"]
[BlackElo "2569"]
[TimeControl "180+1"]
[EndTime "11:34:38 PDT"]
[Termination "mortngabriel won by checkmate"]

1. e4 {[%clk 0:02:37.1]} 1... c5 {[%clk 0:03:00.1]} 2. Nf3 {[%clk 0:02:36.4]}
2... e6 {[%clk 0:03:00.6]} 3. d4 {[%clk 0:02:37.1]} 3... cxd4 {[%clk 0:03:01.5]}
4. Nxd4 {[%clk 0:02:37.7]} 4... a6 {[%clk 0:03:02.2]} 5. Nc3 {[%clk 0:02:38]}
5... Qc7 {[%clk 0:03:02.2]} 6. Bd3 {[%clk 0:02:38.3]} 6... Bc5 {[%clk
0:03:00.2]} 7. Nb3 {[%clk 0:02:38.1]} 7... Be7 {[%clk 0:02:59.4]} 8. O-O {[%clk
0:02:38.9]} 8... d6 {[%clk 0:02:59.3]} 9. Qe2 {[%clk 0:02:39.2]} 9... Nf6 {[%clk
0:02:57.8]} 10. Bd2 {[%clk 0:02:38]} 10... O-O {[%clk 0:02:57.7]} 11. Rae1
{[%clk 0:02:38.2]} 11... Nbd7 {[%clk 0:02:58.3]} 12. f4 {[%clk 0:02:38]} 12...
b5 {[%clk 0:02:44]} 13. e5 {[%clk 0:02:33.9]} 13... dxe5 {[%clk 0:02:44.1]} 14.
fxe5 {[%clk 0:02:34.6]} 14... Nd5 {[%clk 0:02:27.2]} 15. Nxd5 {[%clk 0:02:33.6]}
15... exd5 {[%clk 0:02:27.7]} 16. Qh5 {[%clk 0:02:24.5]} 16... g6 {[%clk
0:02:24]} 17. Qh6 {[%clk 0:02:24.1]} 17... Nxe5 {[%clk 0:02:18.9]} 18. Rxe5
{[%clk 0:02:12.8]} 18... Qxe5 {[%clk 0:02:13.1]} 19. Bc3 {[%clk 0:02:12]} 19...
Bc5+ {[%clk 0:01:12.4]} 20. Nxc5 {[%clk 0:02:01]} 20... d4 {[%clk 0:01:11.1]}
21. Ne4 {[%clk 0:02:00.9]} 21... f5 {[%clk 0:00:46.9]} 22. Ng5 {[%clk 0:01:44]}
22... Ra7 {[%clk 0:00:45.1]} 23. Re1 {[%clk 0:01:25.6]} 23... Qc5 {[%clk
0:00:22.1]} 24. Bd2 {[%clk 0:00:59.8]} 24... Re7 {[%clk 0:00:21.9]} 25. Rf1
{[%clk 0:00:50.3]} 25... Rfe8 {[%clk 0:00:17.5]} 26. h4 {[%clk 0:00:48.4]} 26...
Qe5 {[%clk 0:00:15.5]} 27. Nh3 {[%clk 0:00:40.2]} 27... Bb7 {[%clk 0:00:12.3]}
28. Nf4 {[%clk 0:00:34]} 28... Qg7 {[%clk 0:00:08]} 29. Qg5 {[%clk 0:00:33.9]}
29... h6 {[%clk 0:00:08.3]} 30. Qxg6 {[%clk 0:00:33.4]} 30... Qxg6 {[%clk
0:00:08.1]} 31. Nxg6 {[%clk 0:00:34.3]} 31... Rg7 {[%clk 0:00:08.8]} 32. h5
{[%clk 0:00:34.2]} 32... Be4 {[%clk 0:00:07.9]} 33. Kh2 {[%clk 0:00:26.5]} 33...
Rc8 {[%clk 0:00:04.4]} 34. Kh3 {[%clk 0:00:23.5]} 34... Bxd3 {[%clk 0:00:04]}
35. cxd3 {[%clk 0:00:24.4]} 35... Rc2 {[%clk 0:00:04.5]} 36. Rxf5 {[%clk
0:00:24.8]} 36... Rf7 {[%clk 0:00:03.3]} 37. Rxf7 {[%clk 0:00:22.3]} 37... Kxf7
{[%clk 0:00:04.2]} 38. Bxh6 {[%clk 0:00:22.7]} 38... Rxb2 {[%clk 0:00:04.9]} 39.
Ne5+ {[%clk 0:00:17.9]} 39... Kf6 {[%clk 0:00:05.3]} 40. Bf4 {[%clk 0:00:17.7]}
40... Rxa2 {[%clk 0:00:05.2]} 41. h6 {[%clk 0:00:17.5]} 41... b4 {[%clk
0:00:03.6]} 42. g4 {[%clk 0:00:12.5]} 42... Ra1 {[%clk 0:00:03.6]} 43. g5+
{[%clk 0:00:12.8]} 43... Kf5 {[%clk 0:00:04]} 44. h7 {[%clk 0:00:11.5]} 44...
Rh1+ {[%clk 0:00:03.4]} 45. Bh2 {[%clk 0:00:11.3]} 45... b3 {[%clk 0:00:02.3]}
46. h8=Q {[%clk 0:00:11.5]} 46... b2 {[%clk 0:00:03.2]} 47. Qf6# {[%clk
0:00:11.7]} 1-0

[Event "*** SCC Grand Prix: Titled Tuesday Blitz"]
[Site "Chess.com"]
[Date "2020.08.11"]
[Round "8"]
[White "Sergey85Rodchenkov"]
[Black "mapleaff"]
[Result "1-0"]
[WhiteElo "2477"]
[BlackElo "2347"]
[TimeControl "180+1"]
[EndTime "11:34:38 PDT"]
[Termination "Sergey85Rodchenkov won by resignation"]

1. e4 {[%clk 0:03:00.9]} 1... e5 {[%clk 0:02:59.4]} 2. Nf3 {[%clk 0:03:00.4]}
2... Nc6 {[%clk 0:02:59.8]} 3. Bc4 {[%clk 0:03:00]} 3... Bc5 {[%clk 0:02:57.7]}
4. d3 {[%clk 0:02:59.8]} 4... d6 {[%clk 0:02:55.8]} 5. c3 {[%clk 0:02:58.4]}
5... a5 {[%clk 0:02:54.7]} 6. O-O {[%clk 0:02:57.3]} 6... Nf6 {[%clk 0:02:50.3]}
7. Re1 {[%clk 0:02:55.1]} 7... O-O {[%clk 0:02:33.8]} 8. Nbd2 {[%clk 0:02:50.5]}
8... h6 {[%clk 0:02:32.7]} 9. Nf1 {[%clk 0:02:50.1]} 9... Be6 {[%clk 0:02:18.7]}
10. Bb5 {[%clk 0:02:49.2]} 10... Bd7 {[%clk 0:01:51.9]} 11. Ng3 {[%clk
0:02:44.1]} 11... Ne7 {[%clk 0:01:48.1]} 12. Bc4 {[%clk 0:02:27.6]} 12... a4
{[%clk 0:01:37.2]} 13. d4 {[%clk 0:02:26.8]} 13... exd4 {[%clk 0:01:36.7]} 14.
cxd4 {[%clk 0:02:26.6]} 14... Bb4 {[%clk 0:01:36.7]} 15. Bd2 {[%clk 0:02:26.1]}
15... Bxd2 {[%clk 0:01:35.2]} 16. Qxd2 {[%clk 0:02:25.7]} 16... d5 {[%clk
0:01:31.5]} 17. exd5 {[%clk 0:02:21.8]} 17... Nexd5 {[%clk 0:01:31]} 18. Ne5
{[%clk 0:02:18.9]} 18... Be6 {[%clk 0:01:29.2]} 19. Re2 {[%clk 0:02:02]} 19...
c6 {[%clk 0:01:27.9]} 20. Rae1 {[%clk 0:02:00.6]} 20... Qa5 {[%clk 0:01:27.4]}
21. Qc1 {[%clk 0:01:53]} 21... a3 {[%clk 0:01:23.8]} 22. b3 {[%clk 0:01:46.5]}
22... Rad8 {[%clk 0:00:59.3]} 23. h3 {[%clk 0:01:40.1]} 23... Rfe8 {[%clk
0:00:44.9]} 24. Nd3 {[%clk 0:01:34.4]} 24... Nc7 {[%clk 0:00:27.1]} 25. Nc5
{[%clk 0:01:24.7]} 25... Bxc4 {[%clk 0:00:17.9]} 26. Qxc4 {[%clk 0:01:07.2]}
26... Qxe1+ {[%clk 0:00:15.3]} 27. Rxe1 {[%clk 0:01:06.7]} 27... Rxe1+ {[%clk
0:00:16.2]} 28. Kh2 {[%clk 0:01:07.4]} 28... Nb5 {[%clk 0:00:11.3]} 29. Nf5
{[%clk 0:00:59.7]} 29... b6 {[%clk 0:00:07.9]} 30. Nb7 {[%clk 0:00:52.4]} 30...
Rc8 {[%clk 0:00:06.4]} 31. Qb4 {[%clk 0:00:46.5]} 31... Re6 {[%clk 0:00:05.6]}
32. Ne7+ {[%clk 0:00:45.3]} 32... Rxe7 {[%clk 0:00:05.8]} 33. Qxe7 {[%clk
0:00:45.7]} 33... Nxd4 {[%clk 0:00:05.1]} 34. Nd6 {[%clk 0:00:40.9]} 34... Rf8
{[%clk 0:00:03]} 35. Qa7 {[%clk 0:00:36.8]} 35... c5 {[%clk 0:00:03.9]} 36. Qxa3
{[%clk 0:00:35.6]} 36... Nd5 {[%clk 0:00:03.5]} 37. Qa7 {[%clk 0:00:32.1]} 37...
Nb4 {[%clk 0:00:04.4]} 38. Qxb6 {[%clk 0:00:26.8]} 38... Nxa2 {[%clk 0:00:04.7]}
39. Qxc5 {[%clk 0:00:26.5]} 39... Nxb3 {[%clk 0:00:05.1]} 40. Qa3 {[%clk
0:00:25.6]} 40... Nac1 {[%clk 0:00:05.2]} 41. Qb4 {[%clk 0:00:21.6]} 41... g6
{[%clk 0:00:05.2]} 42. Ne4 {[%clk 0:00:20.5]} 42... h5 {[%clk 0:00:03.4]} 43. f3
{[%clk 0:00:20.3]} 43... Kg7 {[%clk 0:00:02.7]} 44. h4 {[%clk 0:00:20.6]} 44...
f6 {[%clk 0:00:03]} 45. Qc3 {[%clk 0:00:20.6]} 45... Rf7 {[%clk 0:00:03.9]} 46.
Ng5 {[%clk 0:00:20.2]} 46... Na5 {[%clk 0:00:03.8]} 47. Nxf7 {[%clk 0:00:19]}
1-0

[Event "*** SCC Grand Prix: Titled Tuesday Blitz"]
[Site "Chess.com"]
[Date "2020.08.11"]
[Round "8"]
[White "Iskusnyh"]
[Black "Savva09022009"]
[Result "1-0"]
[WhiteElo "2553"]
[BlackElo "2330"]
[TimeControl "180+1"]
[EndTime "11:34:38 PDT"]
[Termination "Iskusnyh won by resignation"]

1. d4 {[%clk 0:03:00.9]} 1... Nf6 {[%clk 0:02:59.2]} 2. c4 {[%clk 0:03:00.9]}
2... e6 {[%clk 0:02:59.1]} 3. g3 {[%clk 0:03:01.4]} 3... d5 {[%clk 0:02:58.7]}
4. Bg2 {[%clk 0:02:58.3]} 4... dxc4 {[%clk 0:02:57.2]} 5. Nf3 {[%clk 0:02:57.6]}
5... a6 {[%clk 0:02:57.4]} 6. O-O {[%clk 0:02:56.3]} 6... Nc6 {[%clk 0:02:56.2]}
7. Nbd2 {[%clk 0:02:53.6]} 7... Nxd4 {[%clk 0:02:50.4]} 8. Nxc4 {[%clk
0:02:51.5]} 8... Nxf3+ {[%clk 0:02:47.1]} 9. Bxf3 {[%clk 0:02:51.3]} 9... Qxd1
{[%clk 0:02:47.5]} 10. Rxd1 {[%clk 0:02:50.4]} 10... Nd5 {[%clk 0:02:30.4]} 11.
e4 {[%clk 0:02:31.8]} 11... Nb6 {[%clk 0:02:27.6]} 12. Na5 {[%clk 0:02:20.2]}
12... e5 {[%clk 0:02:12.9]} 13. Be3 {[%clk 0:01:29.5]} 13... f6 {[%clk
0:01:28.5]} 14. Rac1 {[%clk 0:01:28.2]} 14... Bb4 {[%clk 0:01:26.9]} 15. Rxc7
{[%clk 0:01:10.9]} 15... Bxa5 {[%clk 0:01:15.1]} 16. Rxg7 {[%clk 0:01:10.6]}
16... Nd7 {[%clk 0:01:03]} 17. Bh5+ {[%clk 0:01:03.3]} 17... Kd8 {[%clk
0:01:02]} 18. Bg4 {[%clk 0:01:02]} 18... Kc7 {[%clk 0:00:36.2]} 19. Bxd7 {[%clk
0:01:01]} 19... Bxd7 {[%clk 0:00:31.8]} 20. Rdxd7+ {[%clk 0:01:00]} 20... Kc6
{[%clk 0:00:32]} 21. Rxb7 {[%clk 0:00:51.4]} 21... Rhc8 {[%clk 0:00:25.3]} 22.
b4 {[%clk 0:00:50.6]} 22... Bc7 {[%clk 0:00:23.4]} 23. Rgxc7+ {[%clk 0:00:42]}
23... Rxc7 {[%clk 0:00:24.3]} 24. Rb6+ {[%clk 0:00:42.3]} 24... Kd7 {[%clk
0:00:23]} 25. Rxf6 {[%clk 0:00:42.7]} 25... Rc2 {[%clk 0:00:22.3]} 26. a4 {[%clk
0:00:41.1]} 26... Rb2 {[%clk 0:00:19.6]} 27. Bc5 {[%clk 0:00:40.1]} 27... a5
{[%clk 0:00:18.6]} 28. b5 {[%clk 0:00:36]} 28... Ra2 {[%clk 0:00:18.5]} 29. b6
{[%clk 0:00:33.9]} 29... Rxa4 {[%clk 0:00:17.6]} 30. Bd6 {[%clk 0:00:23.6]}
30... Ra1+ {[%clk 0:00:14.4]} 31. Kg2 {[%clk 0:00:22]} 31... Rb1 {[%clk
0:00:15.1]} 32. Bxe5 {[%clk 0:00:19.9]} 32... a4 {[%clk 0:00:15.3]} 33. Rf7+
{[%clk 0:00:19.7]} 33... Ke6 {[%clk 0:00:13.4]} 34. Ra7 {[%clk 0:00:18.2]} 34...
Re8 {[%clk 0:00:09.1]} 35. Bc7 {[%clk 0:00:17]} 35... Ra1 {[%clk 0:00:08.3]} 36.
b7 {[%clk 0:00:16.6]} 36... a3 {[%clk 0:00:07.7]} 37. b8=Q {[%clk 0:00:16.6]}
37... Rxb8 {[%clk 0:00:07.1]} 38. Bxb8 {[%clk 0:00:17.1]} 38... a2 {[%clk
0:00:08]} 39. Bf4 {[%clk 0:00:16.5]} 39... h5 {[%clk 0:00:06]} 40. Ra6+ {[%clk
0:00:16.6]} 40... Kd7 {[%clk 0:00:05.4]} 41. Be5 {[%clk 0:00:16.7]} 1-0